Cogmind - Beta 16.1 @@@ ROGUE MODE // 2026.02.26 @ 13:03:40 Player: SunShine214 Result: Destroyed by Y-54 Guardian via exploding Nuclear Reactor Performance ------------- Evolutions (3) 1500 Regions Visited (4) 800 Robots Destroyed (82) 410 Value Destroyed (2285) 2285 Prototype IDs (1) 20 Alien Tech Used (0) 0 Bonus (22) 22 TOTAL SCORE: 5037 Bonus ------- High Alert Combat Kills 22 Cogmind --------- Core Integrity 0/700 Matter 44/300 Energy 11/100 System Corruption 1% Temperature Cool (0) Movement Core (50) Location -7/Factory Parts ------- > --- POWER (1) -------- (None) > --- PROPULSION (4) --- (None) > --- UTILITY (6) ------ Advanced Visual Processing Unit Improved Signal Interpreter > --- WEAPON (2) ------- (None) > --- INVENTORY (5) ---- Improved Titanium Leg Medium Storage Unit Structural Scanner Improved Medium Armor Plating Remote Datajack Peak State ------------ > --- POWER ------------ Light Ion Engine > --- PROPULSION ------- Armored Treads Improved Titanium Leg Improved Titanium Leg Improved Titanium Leg > --- UTILITY ---------- Large Storage Unit Advanced Visual Processing Unit Improved Sensor Array Improved Signal Interpreter Hacking Suite Hacking Suite > --- WEAPON ----------- Enhanced Autogun Rocket Launcher > --- INVENTORY -------- Improved Titanium Leg Improved Titanium Leg Flight Unit VTOL Module Medium Storage Unit Structural Scanner Improved Light Armor Plating Improved Medium Armor Plating Improved Medium Armor Plating Hardlight Generator Hardlight Generator Minigun Remote Datajack Mining Laser [Rating: 41] Favorites ----------- Power Light Ion Engine Engine Light Ion Engine Power Core Light Nuclear Core Propulsion Aluminum Leg Treads Light Treads Leg Aluminum Leg Flight Unit Flight Unit Utility Large Storage Unit Device Structural Scanner Storage Large Storage Unit Processor Advanced Visual Processing Unit Hackware Hacking Suite Protection Light Armor Plating Weapon Light Assault Rifle Energy Gun Medium Laser Ballistic Gun Light Assault Rifle Launcher Rocket Launcher Special Weapon Mining Laser Build | -11 -10 -9 -8 -7 ------- Run | Yrd Mat Mat Mat Fac Slots Evolved 6 | . . 2 2 2 Power . | . . . . . Propulsion 2 | . . . 1 1 Utility 4 | . . 2 1 1 Weapon . | . . . . . Parts Attached 58 | 7 11 11 17 12 Power 6 | 1 1 1 2 1 Engine 4 | 1 1 1 . 1 Core 2 | . . . 2 . Reactor . | . . . . . Propulsion 20 | 2 2 2 7 7 Treads 4 | 2 1 . . 1 Leg 11 | . . 2 4 5 Wheel . | . . . . . Hover . | . . . . . Flight 5 | . 1 . 3 1 Utility 18 | 2 5 4 4 3 Device 4 | 1 1 1 1 . Storage 4 | 1 3 . . . Processor 3 | . . 1 2 . Hackware 2 | . . . . 2 Protection 5 | . 1 2 1 1 Artifact . | . . . . . Weapon 14 | 2 3 4 4 1 Energy Gun 2 | 2 . . . . Energy Cannon . | . . . . . Ballistic Gun 6 | . 2 2 2 . Ballistic Cannon . | . . . . . Launcher 5 | . . 2 2 1 Special Weapon 1 | . 1 . . . Impact Weapon . | . . . . . Slashing Weapon . | . . . . . Piercing Weapon . | . . . . . Special Melee Weapon . | . . . . . Unidentified Prototypes 1 | . . . 1 . Parts Lost 32 | . 4 5 9 14 Power 3 | . . 1 1 1 Propulsion 13 | . 1 1 4 7 Utility 6 | . 1 1 1 3 Weapon 10 | . 2 2 3 3 Highest Loss Streak 13 | . 1 2 5 13 To Critical Strikes . | . . . . . Average Backups 11 | 1 8 13 14 12 Power . | . . . . . Propulsion 3 | . 2 4 3 1 Utility 5 | . 3 4 7 6 Weapon 2 | 1 1 3 3 3 Tool/Special . | . . . . . Unused Backups 12 | . 1 3 2 6 Power 1 | . 1 . . . Propulsion 5 | . . 3 2 . Utility 5 | . . . . 5 Weapon . | . . . . . Tool/Special 1 | . . . . 1 Average Slot Usage (%) 87 | . 95 90 92 59 Engine 6 | . 14 8 1 . Core 1 | . . . 5 . Treads 7 | . 22 4 . 3 Leg 12 | . . 17 22 7 Flight 1 | . 4 . . 4 Device 7 | . 5 9 9 5 Storage 10 | . 14 11 9 6 Processor 8 | . . 5 17 15 Hackware 1 | . . . . 11 Protection 8 | . 6 12 8 . Energy Gun 2 | . 11 . . . Ballistic Gun 12 | . 15 15 11 1 Launcher 3 | . . 6 4 . Peak Build Rating 41 | 9 9 18 31 41 Average Rating 16 | 6 7 12 27 24 On Entrance 10 | . 9 8 18 18 Avg Prop Armor Cover (%) 8 | . 2 . . 17 Naked Turns . | . . . . . Heaviest Build 37 | 14 28 35 37 27 Greatest Support 60 | 40 40 40 35 60 Greatest Overweight (x) 9 | . 1 2 9 6 Average Overweight (x) . | . . . 1 1 Largest Inventory Capacity 15 | 8 15 15 15 15 Average Capacity 13 | 7 9 15 15 14 Most Carried 15 | 3 12 15 15 15 Average Carried 11 | 1 8 13 14 12 Final Capacity 15 | 8 15 15 15 5 Final Carried 15 | 3 12 15 11 5 Class Distribution -------------------- 68% | Mutant 14% | Scavenger-Skirmisher 11% | Hacker-Mutant 6% | Skirmisher Dominant Class ---------------- Mutant | -10/Materials Mutant | -9/Materials Scavenger-Skirmisher | -8/Materials Hacker-Mutant | -7/Factory Resources | -11 -10 -9 -8 -7 ----------- Run | Yrd Mat Mat Mat Fac Matter Collected 1615 | 270 162 604 385 194 Remotely . | . . . . . Salvage Created 2315 | 89 441 776 697 312 Parts 137 | 8 31 43 40 15 Haulers Intercepted 4 | . 2 2 . . Recyclers Shooed 7 | 1 . 6 . . Parts Field Recycled . | . . . . . Retrieved Matter . | . . . . . Parts Self-Destructed . | . . . . . Prevented . | . . . . . Parts Restored . | . . . . . Kills | -11 -10 -9 -8 -7 ------- Run | Yrd Mat Mat Mat Fac Combat Hostiles Destroyed 55 | . 14 19 19 3 Guns 29 | . 14 4 8 3 AOE 26 | . . 15 11 . Classes Destroyed 14 | 2 5 4 1 2 Worker 4 | . . 2 . 2 Builder 5 | . . 1 4 . Tunneler 1 | 1 . . . . Hauler 4 | . 2 2 . . Recycler 6 | 1 . 3 . 2 Mechanic 1 | . . . . 1 Operator 4 | . 1 2 1 . Watcher 2 | . 1 1 . . Swarmer 13 | . 9 4 . . Grunt 33 | . 5 11 15 2 Duelist 1 | . . 1 . . Sentry 4 | . . 3 1 . Hunter 3 | . . . 3 . Programmer 1 | . . . . 1 Best Kill Streak 8 | 2 3 6 8 6 Combat Bots Only 6 | . 3 4 6 2 Max Kills in Single Turn 3 | 1 1 3 3 2 Gunslinging . | . . . . . Exploded 3 | . . 3 2 . Melee . | . . . . . Uniques/NPCs Destroyed . | . . . . . Combat | -11 -10 -9 -8 -7 -------- Run | Yrd Mat Mat Mat Fac Hostile Shots Fired 623 | . 78 62 112 371 Missed 207 | . 22 20 36 129 Hits 416 | . 56 42 76 242 Projectile 416 | . 56 42 76 242 AOE 1 | . . . . 1 Critical Strikes 6 | . . 1 1 4 Damage Taken 5148 | . 685 607 1379 2477 Core 1135 | . 97 119 198 721 Absorbed by Shields . | . . . . . Core Remaining (%) 73 | 100 61 70 64 . Volleys Fired 232 | 4 59 92 45 32 Largest 2 | 2 2 2 2 1 Hottest 150 | 90 150 53 125 33 Shots Fired 381 | 8 109 150 82 32 Gun 324 | 8 106 126 57 27 Cannon . | . . . . . Launcher 53 | . . 24 24 5 Special 4 | . 3 . 1 . Kinetic 252 | . 42 126 57 27 Thermal 76 | 8 67 . 1 . Explosive 53 | . . 24 24 5 Electromagnetic . | . . . . . Robot Hit Streak 10 | 6 7 7 10 7 Robot Miss Streak 4 | . 4 4 3 2 Penetration Max . | . . . . . Secondary Targets 3 | . 3 . . . Max Gunslinging Chain 1 | . 1 . . . Shots Hit Robots 230 | 6 57 88 54 25 Core Hits 145 | 3 30 50 46 16 Critical Kills 3 | . . . 2 1 Critical Parts Destroyed 1 | . 1 . . . Critical Strikes 4 | . 1 . 2 1 Destroy 4 | . 1 . 2 1 Melee Attacks . | . . . . . Impact . | . . . . . Slashing . | . . . . . Piercing . | . . . . . Sneak Attacks . | . . . . . Combat Hostiles . | . . . . . Follow-up Attacks . | . . . . . Damage Inflicted 6498 | 69 698 2440 2465 826 Guns 2637 | 69 603 808 752 405 Cannons . | . . . . . Explosions 3741 | . 79 1619 1701 342 Melee . | . . . . . Ramming 120 | . 16 13 12 79 Kinetic 2168 | . 203 808 752 405 Thermal 619 | 69 479 . 71 . Explosive 3591 | . . 1619 1630 342 Electromagnetic . | . . . . . Impact . | . . . . . Slashing . | . . . . . Piercing . | . . . . . Highest Corruption 5 | . . 5 1 1 Average Corruption 2 | . . 3 1 1 Corruption Purged . | . . . . . Corruption Blocked . | . . . . . Effects 17 | . . 10 4 3 Message Errors 4 | . . 2 2 . Matter Fused 3 | . . 2 . 1 Heat Flow Errors 6 | . . 4 1 1 Energy Discharges 1 | . . . . 1 Parts Rejected 1 | . . 1 . . Data Loss (major) 1 | . . 1 . . Weapon Failures 1 | . . . 1 . Overload Shots . | . . . . . Overflow Damage 184 | . 44 54 52 34 Projectiles . | . . . . . Explosions 184 | . 44 54 52 34 Melee . | . . . . . Knockbacks 1 | . . . . 1 Impact 1 | . . . . 1 Kinetic . | . . . . . Secondary . | . . . . . Self-Inflicted Damage 584 | . 152 76 195 161 Shots 17 | . 2 2 8 5 Rammed 3 | . 2 . . 1 Targets Rammed 32 | . 3 2 2 25 Kicked 28 | . . 2 2 24 Crushed 1 | . 1 . . . Highest Temperature 264 | 90 234 264 219 104 Average Temperature 54 | 40 71 48 32 23 Received Heat Transfer 1671 | . 108 231 567 765 Siege Activations . | . . . . . Martial Activations . | . . . . . Shielding Activations . | . . . . . Robots Disrupted . | . . . . . Combat Hostiles . | . . . . . Robots Corrupted . | . . . . . Combat Hostiles . | . . . . . Parts Fried . | . . . . . Impact Corruptions . | . . . . . Robots Melted . | . . . . . Combat Hostiles . | . . . . . Parts Melted 2 | . 2 . . . Heat Transferred 1423 | 198 1175 . 50 . Parts Sabotaged . | . . . . . Parts Stolen . | . . . . . Parts Stripped . | . . . . . Power Chain Reactions . | . . . . . Alert | -11 -10 -9 -8 -7 ------- Run | Yrd Mat Mat Mat Fac Maximum Alert Level 2 | . 1 1 2 . Low Security (%) 63 | 100 98 30 52 100 Level 1 33 | . 1 69 34 . Level 2 2 | . . . 12 . Level 3 . | . . . . . Level 4 . | . . . . . Level 5 . | . . . . . High Security . | . . . . . Max Security . | . . . . . Peak Influence 450 | 5 207 295 450 183 Initial 183 | . . 31 31 183 Average 149 | 1 102 199 193 58 Influence Increases 2135 | 10 445 778 792 110 Destroy 0b10 Robot/C 1100 | . 280 380 380 60 Destroy 0b10 Robot/NC 135 | 10 20 55 25 25 Destroy Leader 262 | . 46 96 110 10 Successful Hack 20 | . . 12 . 8 Disable Machine 210 | . 60 45 105 . Destroy Structure 378 | . 39 175 157 7 Lose Combat Pursuer 30 | . . 15 15 . Influence Decreases 2135 | 10 369 779 463 514 Entered New Map 310 | . . 45 44 221 Time Decay 1441 | 10 329 534 329 239 Lost Part 234 | . 40 50 90 54 Purge Threat 150 | . . 150 . . Squads Dispatched 16 | . 1 3 10 2 Investigation 4 | . . 1 3 . Extermination 1 | . . . . 1 Reinforcement 8 | . 1 2 4 1 Assault . | . . . . . Garrison 3 | . . . 3 . Intercept . | . . . . . Searches Triggered . | . . . . . Construction Impeded 3 | . . . 2 1 Haulers Reinforced . | . . . . . Active Scanning Responses . | . . . . . Cargo Convoy Interrupts . | . . . . . Stealth | -11 -10 -9 -8 -7 --------- Run | Yrd Mat Mat Mat Fac Distress Signals 7 | . 1 3 1 2 Communications Jammed . | . . . . . Distress Signals . | . . . . . Times Spotted 94 | . 25 32 30 7 Peak Tracking Total 6 | . 3 5 6 4 Tactical Retreats 2 | . . 1 1 . Traps | -11 -10 -9 -8 -7 ------- Run | Yrd Mat Mat Mat Fac Traps Triggered 4 | . 1 3 . . Indirectly . | . . . . . Trap Hack Attempts . | . . . . . Triggered . | . . . . . Disarmed . | . . . . . Reprogrammed . | . . . . . Reused . | . . . . . Traps Extracted . | . . . . . Installed . | . . . . . Triggered . | . . . . . Machines | -11 -10 -9 -8 -7 ---------- Run | Yrd Mat Mat Mat Fac Machines Disabled 14 | . 4 3 7 . Max in Single Turn 3 | . 3 1 3 . Machines Repaired . | . . . . . Machines Dismantled . | . . . . . Machines Sabotaged . | . . . . . Overloaded Fab Kills . | . . . . . Hacking | -11 -10 -9 -8 -7 --------- Run | Yrd Mat Mat Mat Fac Machines Accessed 13 | . 1 5 4 3 Terminals 9 | . 1 4 3 1 Fabricators 1 | . . . . 1 Repair Stations . | . . . . . Recycling Units . | . . . . . Scanalyzers 2 | . . 1 . 1 Garrison Access 1 | . . . 1 . Total Hacks 28 | . 2 11 12 3 Successful 10 | . 1 6 1 2 Failed 18 | . 1 5 11 1 Catastrophic 4 | . 1 1 1 1 Database Lockouts . | . . . . . Manual 10 | . 1 . 8 1 Terminals 20 | . 2 9 8 1 Fabricators 1 | . . . . 1 Repair Stations . | . . . . . Recycling Units . | . . . . . Scanalyzers 3 | . . 2 . 1 Garrison Access 4 | . . . 4 . Terminal Hacks 6 | . 1 4 1 . Branch Access Points 2 | . . 1 1 . Unreport Threat 1 | . . 1 . . Hauler Manifests 1 | . . 1 . . Registered Components 2 | . 1 1 . . Fabricator Hacks 1 | . . . . 1 Network Status 1 | . . . . 1 Repair Station Hacks . | . . . . . Recycling Unit Hacks . | . . . . . Scanalyzer 3 | . . 2 . 1 Retrieve Study 3 | . . 2 . 1 Garrison Access Hacks . | . . . . . Unauthorized Hacks . | . . . . . Terminals . | . . . . . Fabricators . | . . . . . Repair Stations . | . . . . . Recycling Units . | . . . . . Scanalyzers . | . . . . . Garrison Access . | . . . . . Data Cores Recovered . | . . . . . Used . | . . . . . Hacking Detections 9 | . . 5 3 1 Full Trace Events 4 | . . 1 3 . Feedback Events . | . . . . . Feedback Blocked . | . . . . . Robot Schematics Acquired . | . . . . . Robots Built . | . . . . . Authchips . | . . . . . Time . | . . . . . Total Robot Build Rating . | . . . . . Part Schematics Acquired . | . . . . . Parts Built . | . . . . . Authchips . | . . . . . Time . | . . . . . Total Part Build Rating . | . . . . . Part Studies Acquired 3 | . . 2 . 1 Parts Repaired . | . . . . . Time . | . . . . . Parts Recycled . | . . . . . Recycled Matter . | . . . . . Retrieved Matter . | . . . . . Retrieved Components . | . . . . . Parts Scanalyzed . | . . . . . Part Schematics Acquired . | . . . . . Parts Damaged . | . . . . . Bothacking | -11 -10 -9 -8 -7 ------------ Run | Yrd Mat Mat Mat Fac Used RIF Installer . | . . . . . Robots Hacked . | . . . . . Non-combat . | . . . . . Combat . | . . . . . Robot Hacks Applied . | . . . . . Relay Couplers Released . | . . . . . Fabnet Peak Effective % . | . . . . . Robots Rewired . | . . . . . Allies Hacked . | . . . . . Hacks Repelled . | . . . . . Allies | -11 -10 -9 -8 -7 -------- Run | Yrd Mat Mat Mat Fac Total Allies . | . . . . . Largest Group . | . . . . . Highest-Rated Group . | . . . . . Highest-Rated Ally . | . . . . . Total Orders . | . . . . . Ally Attacks . | . . . . . Total Damage . | . . . . . Kills . | . . . . . Allies Corrupted . | . . . . . Allies Melted . | . . . . . Intel | -11 -10 -9 -8 -7 ------- Run | Yrd Mat Mat Mat Fac Active Infowar (turns) 3391 | 38 343 1392 938 680 Optics 1597 | . . . 917 680 Sensors 1702 | . 292 . 877 533 Terrain 89 | 38 51 . . . Structural 1453 | . . 1392 61 . Robot Analysis Total . | . . . . . Derelict Logs Recovered . | . . . . . Drone Launches . | . . . . . Drone Recoveries . | . . . . . Exploration | -11 -10 -9 -8 -7 ------------- Run | Yrd Mat Mat Mat Fac Turns Passed 4254 | 91 968 1577 938 680 Spaces Moved 1871 | 47 441 704 404 275 Core 16 | 8 . . 1 7 Treads 671 | 39 441 145 . 46 Legs 1078 | . . 559 397 122 Wheels . | . . . . . Hover . | . . . . . Flight 106 | . . . 6 100 Fastest Speed 50 | 50 160 160 112 50 Average Speed 182 | 141 169 187 190 187 Slowest Speed 500 | 160 240 260 500 350 Overloaded Moves . | . . . . . Propulsion Burnouts . | . . . . . Robots Hopped . | . . . . . Potential Cave-ins . | . . . . . Cave-ins Triggered . | . . . . . Exploration Rate (%) 30 | 3 59 51 29 10 Regions Visited 4 Branch Regions . Pre-discovered Areas . | . . . . . Known Exits Taken 2 | . . 1 1 . Unknown Exits Taken 2 | 1 1 . . . Scrap Searched . | . . . . . Spaces Dug . | . . . . . Terrain Destroyed 415 | . 42 197 170 6 Melee . | . . . . . Projectile . | . . . . . AOE 415 | . 42 197 170 6 Terrain Rammed . | . . . . . Walls Destroyed . | . . . . . Machines Disabled . | . . . . . Actions | -11 -10 -9 -8 -7 --------- Run | Yrd Mat Mat Mat Fac Total 2348 | 60 552 837 492 407 Wait 76 | . 21 2 11 42 Move 1867 | 46 440 703 403 275 Hop . | . . . . . Pick Up 38 | 3 11 15 3 6 Fast Attach 20 | 7 2 3 2 6 Attach 22 | . 2 5 5 10 Detach 4 | . . . . 4 Swap 30 | . 9 6 13 2 Drop 27 | . 5 9 8 5 Fire 232 | 4 59 92 45 32 Melee . | . . . . . Ram 1 | . . . . 1 Kick 28 | . . 2 2 24 Crush 3 | . 3 . . . Escape Stasis . | . . . . . Rewire . | . . . . . Trap . | . . . . . Miscellaneous . | . . . . . Route ------- -11/Scrapyard -10/Materials (discovered 3 exits: *Mat / [*Min] / [*Sub]) -9/Materials (discovered 2 exits: *Mat / *Min) -8/Materials -7/Factory History --------- Turn | Location | Event 6 | -11/Scrapyard | Discovered new exit (range 15) 92 | -11/Scrapyard | Entered Materials 175 | -10/Materials | Discovered new exit (range 16) 245 | -10/Materials | Discovered new exit (range 5) 324 | -10/Materials | Build established: Mutant 925 | -10/Materials | Discovered new exit (range 7) 1060 | -10/Materials | Entered another Materials area 1060 | -9/Materials | Evolved 2 slots: Utility x2 1121 | -9/Materials | Identified exit to Mines 1858 | -9/Materials | Discovered new exit (range 5) 1875 | -9/Materials | Identified exit to Materials 2637 | -9/Materials | Entered another Materials area 2637 | -8/Materials | Evolved 2 slots: Propulsion x1, Utility x1 3039 | -8/Materials | Garrison activated, responded to threat 3127 | -8/Materials | Build established: Scavenger-Skirmisher 3415 | -8/Materials | Lost 3 parts (1p1n1u) 3547 | -8/Materials | Discovered new exit (range 10) 3573 | -8/Materials | Identified exit to Factory 3575 | -8/Materials | Entered Factory 3575 | -7/Factory | Evolved 2 slots: Propulsion x1, Utility x1 3605 | -7/Factory | Lost 5 parts (3n2w) 3869 | -7/Factory | Build established: Hacker-Mutant 4135 | -7/Factory | Core integrity fell below 50% 4176 | -7/Factory | Core integrity fell below 20% 4182 | -7/Factory | Lost 13 parts (1p6n3u3w) 4255 | -7/Factory | Destroyed by Y-54 Guardian via exploding Nuclear Reactor Last Messages --------------- 04150_ U-05 Engineer builds a Wall. 04150_ U-05 Engineer lays Concrete. 04151_ Hacking Suite destroyed. 04152_ Acquired Xenon Bombardment Thruster. 04153_ U-05 Engineer lays Concrete. 04157_ U-05 Engineer builds a Wall. 04157_ U-05 Engineer lays Concrete. 04179_ System corrupted: Energy discharge (-12). 04189_ K-01 Serf collects debris. 04205_ System corrupted: Heat flow error (+136). 04212_ Kicked U-05 Engineer. 04212_ U-05 Engineer sends out distress signal. 04241_ System corrupted: Matter fused (-6). 04243_ Dropped Lrg. Storage Unit. 04250_ Dropped Imp. Titanium Leg. 04252_ Xenon Bombardment Thruster destroyed. 04253_ Dropped Imp. Medium Armor Plating. 04254_ K-01 Serf cleans the Nuclear Reactor. 04255_ Nuclear Reactor explodes. 04255_ K-01 Serf destroyed. Map ----- +----------------------------------------------------+ | ?????????????????????????????????????????? ??? | | ?????????????????????????????????????????? ?? | | ?????????????????????????????????????????? """ | | ??????????????????????????????????????????? """ | | ???????????????????????????????????????????# """ | | ???????????????????????????????????????????# """ | | ?????????????????????????????###???????????# | | ????????????????????????????? ?????????### """ | | ????????????????????????????? ????????? + """ | | ????????????????????????????? ??????#?? # """ | | ????????????????????????????? ????? #?? # """ | | ?????????????????????????#??""" """" #?? # | | ?????????????????????????# """" """" #?? # | | ?????????????????????????# """" """" #?? # | | ?????????????????????????# """" """" #?? # | | ?????????????????????????# """" """" #??#+# ! | | ?????????????????????????? """" """" #??# # | | ???????????????????????????? ????# # | | ?????????????????????????????? ?????## ####### | | ????????????????????###### ####+######## #????? | | ????????????????????# # #????? | | ????????????????????# # Y ###### #????? | | ???????] == ### #### # #????## ##????? | | ???????????? + =!==! /Y #?????# #?????? | | ????????????????????# %%|!! # #????##+####### | | ????????????????????# """@! # #????# | | ????????????????????# """ # #????# """ """ | | ????????????????????# """ # #????# """ """ | | ????????????????????# u # #????# """ """ | | ????????????????????########## #????# | | ?????????????????????????????# #????# " " ! | | ?????????????????????????????# #????# "Y" ! | | ?????????????????????????????# #????# """ | | ?????????????????????????????# #????########## | | ?????????????????????????????# #?????????????? | | ?????????????????????????????# #????????????? | | ?????????????????????????????# #????????????" | | ?????????????????????????????# #???????????"" | | ?????????????????????????????# #?????????? ? | | ?????????????????????????????? #?????????#+##? | | ?????????????????????????????? ??????????????? | | ?????????????????????????????? ????????????????? | | ????????????????????????????????????????????????? | | ????????????????????????????????????????????????? | | ???????????????????????????????????????????????? | | ???????????????????????????????????????????????? | | ????????????????????????????????????????????????## | | ?????????????????????????????????????????????????? | | ?????????????????????????????????????????????????? | | ?????????????????????????????????????????????????? | +----------------------------------------------------+ Best States ------------- Heat Dissipation 34 Energy Generation 14 Energy Capacity 250 Matter Stores 300 Matter Capacity 300 Sight Range 20 Robot Scan Range 15 Terrain Scan Range 16 Terrain Scan Density 10 Armor Coverage 300 Evasion (%) 50 Recoil Reduction 2 Offensive Hacking 20 Item Schematics ----------------- None Robot Schematics ------------------ None Fabricated ------------ Nothing Repaired ---------- Nothing Studied --------- Flight Unit | -9/Materials | Hacked Rocket Launcher | -9/Materials | Hacked VTOL Module | -7/Factory | Hacked Alien Tech Used ----------------- None Achievements -------------- None Challenges ------------ None Game ------ Seed VisualPiercingCanceller Manual? 0 Play Time 00:29:00 Cumulative 95.1 hours Start 2026.02.25 @ 13:29:07 End 2026.02.26 @ 13:03:40 Sessions 2 Manual Loads 0 Difficulty Rogue Special Mode None Game No. 149 Rogue 149 Adventurer 0 Explorer 0 Win Type - Total 1 Types 1/0/0/0/0/0/0/0/0/0 Lore% 44 Gallery% 49 Achievement% 35 Wizard Run 0 Options --------- Layout 1 ASCII 0 Keyboard 1 Movement Arrows Keybinds 0 Fullscreen 1 Font 24/Smallcaps Map View 50x35 Zoom Use 0% Tactical HUD 1 Map Filters NONE Filters NONE Steam 1 RUN: 1785288a-fac7-48d4-961b-b2781e422380